{"text_format":"1","workbook":"xlsx","n_sheets":2,"sheets":["Таблица","Data"],"not_rendered":{"charts":0,"images":0,"macros":1,"external_links":0,"defined_names":2,"comments":0,"pivot_tables":0},"unopened":[],"bounds":{"document_bytes":16777216,"sheet_cells":100000,"rows_first":2000,"rows_last":500,"rows_between":2000,"halvings":0,"cell_chars":16384,"cell_head_chars":4096},"cells_cut":0,"cells_raw":0,"read":"whole","date_system":"1900"}

{"sheet":"Таблица","index":0,"n_rows":14,"n_cols":10,"rows_kept":14,"cut":false,"hidden":false,"merged":[]}
[]
[null,null,"ч"]
[null,null,"Дата","Наимнование","Количество","Цена","Сумма","Валюта","Курс валюты","Сумма в рублях"]
[null,null,"2013-01-01","ххх",2,350,{"$f":"E4*F4","v":700},"RUR",null,{"$f":"IF(H4=\"RUR\",G4,G4*I4)","v":700}]
[null,null,null,null,null,null,0,null,null,0]
[null,null,null,null,null,null,0,null,null,0]
[null,null,null,null,null,null,0,null,null,0]
[null,null,null,null,null,null,0,null,null,0]
[null,null,null,null,null,null,0,null,null,0]
[null,null,null,null,null,null,0,null,null,0]
[null,null,null,null,null,null,0,null,null,0]
[null,null,null,null,null,null,0,null,null,0]
[null,null,null,null,null,null,0,null,null,0]
[null,null,"Итого:",null,null,null,null,null,null,{"$f":"SUM(J$4:J13)","v":700}]

{"sheet":"Data","index":1,"n_rows":4,"n_cols":1,"rows_kept":4,"cut":false,"hidden":false,"merged":[]}
["Валюты"]
["EUR"]
["USD"]
["RUR"]